bitfinex/quotes_SOLUSD_20250525
["timestamp","ask_amount","ask_price","bid_price","bid_amount"]
[1748216695762,3.26368959,175.2,175.19,18.00675706]
[1748216695969,3.26368959,175.2,175.19,36.01351412]
[1748216696260,1.71220034,175.22,175.19,36.01351412]
[1748216696466,1.71220034,175.22,175.21,18.00675706]
[1748216697167,1.71203561,175.23,175.21,18.00675706]
[1748216697467,1.71203561,175.23,175.2,18.00675706]
[1748216697468,1.71203561,175.23,175.22,18.00675706]
[1748216700569,7.09587737,175.24,175.22,18.00675706]
[1748216700771,7.09587737,175.24,175.23,18.00675706]
[1748216701467,4.97565781,175.24,175.23,18.00675706]
[1748216702551,7.09587737,175.24,175.23,18.00675706]
[1748216704180,3.26368959,175.24,175.23,18.00675706]
[1748216704471,4.2449741,175.24,175.23,18.00675706]
[1748216704678,8.15702152,175.24,175.23,18.00675706]
[1748216705778,1.71186892,175.25,175.23,18.00675706]
[1748216705951,1.71174255,175.26,175.23,18.00675706]
[1748216706151,1.71174255,175.26,175.25,18.00675706]
[1748216706570,5.95534458,175.26,175.25,18.00675706]
[1748216707176,15.24824685,175.26,175.25,18.00675706]
[1748216708656,13.12631834,175.26,175.25,18.00675706]
[1748216708965,9.86705943,175.26,175.25,18.00675706]
[1748216710671,5.6234574,175.26,175.25,18.00675706]
[1748216711858,1.71174255,175.26,175.25,18.00675706]
[1748216712275,1.71164489,175.27,175.25,18.00675706]
[1748216712459,1.71164489,175.27,175.26,18.00675706]
[1748216712661,5.61776604,175.27,175.26,18.00675706]
[1748216713469,1.71164489,175.27,175.26,18.00675706]
[1748216715864,5.61540464,175.27,175.26,18.00675706]
[1748216717156,1.71164489,175.27,175.21,36.64]
[1748216717356,1.71164489,175.27,175.26,18.00675706]
[1748216720474,4.27867609,175.29,175.26,18.00675706]
[1748216720870,8.51045645,175.29,175.26,18.00675706]
[1748216721260,3.90227073,175.28,175.26,18.00675706]
[1748216721683,3.90227073,175.28,175.27,18.00675706]
[1748216721984,8.13405109,175.28,175.27,18.00675706]
[1748216723477,9.84559832,175.28,175.27,18.00675706]
[1748216727386,11.96173708,175.28,175.27,18.00675706]
[1748216727768,16.24060517,175.28,175.21,70.84]
[1748216727969,16.24060517,175.28,175.27,18.00675706]
[1748216732176,19.49986408,175.28,175.27,18.00675706]
[1748216733181,19.49986408,175.28,175.21,70.84]
[1748216733382,2.11613876,175.27,175.26,18.00675706]
[1748216733772,10.25018985,175.27,175.26,18.00675706]
[1748216734279,28.89983871,175.27,175.21,36.64]
[1748216734477,1.71184022,175.25,175.23,18.00675706]
[1748216734876,2.11613876,175.24,175.23,18.00675706]
[1748216735075,6.01840949,175.24,175.23,18.00675706]
[1748216735484,10.25018985,175.24,175.23,18.00675706]
[1748216735690,13.50944876,175.24,175.23,18.00675706]
[1748216736394,1.71203561,175.23,175.16,36.6]
[1748216736703,2.11613876,175.22,175.2,18.00675706]
[1748216736894,6.34791912,175.22,175.2,18.00675706]
[1748216737075,3.25925891,175.21,175.2,18.00675706]
[1748216737275,7.16152964,175.21,175.2,18.00675706]
[1748216737474,10.98989943,175.21,175.2,18.00675706]
[1748216737699,15.22167979,175.21,175.2,18.00675706]
[1748216738476,19.50225738,175.21,175.19,18.00675706]
[1748216738802,4.23178036,175.2,175.19,18.00675706]
[1748216739000,6.34791912,175.2,175.19,18.00675706]
[1748216739300,9.60717803,175.2,175.19,18.00675706]
[1748216739486,15.22177752,175.2,175.19,18.00675706]
[1748216739817,19.50259943,175.2,175.16,36.6]
[1748216739981,19.50259943,175.2,175.18,18.00675706]
[1748216740612,6.01840949,175.19,175.18,18.00675706]
[1748216740803,17.53183974,175.19,175.18,18.00675706]
[1748216741174,17.53183974,175.19,175.17,18.00675706]
[1748216741397,4.23178036,175.18,175.17,18.00675706]
[1748216741571,8.06044338,175.18,175.17,18.00675706]
[1748216741780,11.31970229,175.18,175.17,18.00675706]
[1748216741978,15.22197302,175.18,175.17,18.00675706]
[1748216743376,18.64964886,175.17,175.11,36.6]
[1748216743575,18.64964886,175.17,175.15,18.00675706]
[1748216743796,4.23178036,175.16,175.15,18.00675706]
[1748216744300,10.25018985,175.16,175.15,18.00675706]
[1748216744693,11.96290964,175.16,175.15,18.00675706]
[1748216745200,15.22216855,175.16,175.15,18.00675706]
[1748216745897,19.50396804,175.16,175.11,36.6]
[1748216746086,19.50396804,175.16,175.15,18.00675706]
[1748216746706,15.22216855,175.16,175.15,18.00675706]
[1748216747593,11.39331,175.16,175.15,18.00675706]
[1748216747795,8.13405109,175.16,175.15,18.00675706]
[1748216747976,3.90227073,175.16,175.15,18.00675706]
[1748216748182,3.25925891,175.17,175.15,18.00675706]
[1748216748382,1.71226484,175.21,175.16,52.20675706]
[1748216748601,1.71226484,175.21,175.2,36.01351412]
[1748216748800,1.71213331,175.22,175.2,36.01351412]
[1748216748990,3.76972399,175.21,175.2,36.01351412]
[1748216749188,8.0121369,175.21,175.2,36.01351412]
[1748216749387,8.0121369,175.21,175.2,18.00675706]
[1748216750688,9.72436793,175.21,175.2,18.00675706]
[1748216751798,9.72436793,175.21,175.2,36.01351412]
[1748216751999,9.72436793,175.21,175.2,18.00675706]
[1748216753797,14.00494552,175.21,175.2,18.00675706]
[1748216756108,14.00494552,175.21,175.14,107.5]
[1748216756315,14.00494552,175.21,175.12,26.0]
[1748216756612,5.89123496,175.2,175.19,18.00675706]
[1748216757207,10.13364787,175.2,175.19,18.00675706]
[1748216757715,11.84597663,175.2,175.19,18.00675706]
[1748216757915,16.12679854,175.2,175.18,18.00675706]
[1748216758213,4.24241291,175.19,175.18,18.00675706]
[1748216758412,8.0121369,175.19,175.18,18.00675706]
[1748216758590,10.13364787,175.19,175.18,18.00675706]
[1748216758992,10.13364787,175.19,175.12,26.0]
[1748216759192,10.13364787,175.19,175.16,18.00675706]
[1748216759520,10.13364787,175.18,175.16,18.00675706]
[1748216760019,3.83413299,175.17,175.16,18.00675706]
[1748216760204,11.88541204,175.17,175.11,70.78]
[1748216760399,11.88541204,175.17,175.16,18.00675706]
[1748216760604,16.12782495,175.17,175.16,18.00675706]
[1748216761103,19.38745589,175.17,175.16,18.00675706]
[1748216762997,19.38745589,175.17,175.14,18.00675706]
[1748216763313,3.76972399,175.16,175.15,18.00675706]
[1748216763516,5.89123496,175.16,175.15,18.00675706]
[1748216763703,10.13364787,175.16,175.15,18.00675706]
[1748216764218,11.84636766,175.16,175.15,18.00675706]
[1748216765007,15.1059986,175.16,175.15,18.00675706]
[1748216766896,19.38779809,175.16,175.11,36.58]
[1748216767112,11.37566119,175.16,175.15,18.00675706]
[1748216767513,8.11603025,175.16,175.15,18.00675706]
[1748216768121,12.36105708,175.16,175.15,18.00675706]
[1748216768526,12.36105708,175.16,175.13,18.00675706]
[1748216768835,18.64964886,175.15,175.12,18.00675706]
[1748216769000,2.12151097,175.14,175.11,26.0]
[1748216769202,2.12151097,175.14,175.13,18.00675706]
[1748216769410,5.38114191,175.14,175.13,18.00675706]
[1748216769626,9.62616874,175.14,175.13,18.00675706]
[1748216770303,7.50465777,175.14,175.13,18.00675706]
[1748216770502,12.9925255,175.14,175.13,18.00675706]
[1748216770921,9.73289456,175.14,175.13,18.00675706]
[1748216771132,9.73289456,175.14,175.12,18.00675706]
[1748216771133,14.01518301,175.14,175.12,18.00675706]
[1748216771634,10.24023066,175.14,175.12,18.00675706]
[1748216771929,4.24502683,175.13,175.11,44.00675706]
[1748216772133,4.24502683,175.13,175.09,26.0]
[1748216772333,4.24502683,175.13,175.09,44.00675706]
[1748216772521,1.71320884,175.11,175.09,44.00675706]
[1748216774730,26.76934149,175.12,175.06,36.58]
[1748216774938,8.11969263,175.12,175.11,18.00675706]
[1748216775127,3.83691511,175.12,175.11,18.00675706]
[1748216775305,6.37210763,175.12,175.11,44.00675706]
[1748216775503,4.24830352,175.12,175.11,18.00675706]
[1748216775703,1.7129049,175.15,175.14,26.0]
[1748216775904,1.7129049,175.15,175.14,44.00675706]
[1748216776410,5.49107868,175.15,175.14,44.00675706]
[1748216777482,8.75416094,175.15,175.14,44.00675706]
[1748216777729,10.87861953,175.15,175.14,44.00675706]
[1748216779730,9.16571463,175.15,175.14,44.00675706]
[1748216780542,7.04125604,175.15,175.14,44.00675706]
[1748216780848,3.77817378,175.15,175.14,44.00675706]
[1748216781652,1.71235086,175.2,175.14,45.71967244]
[1748216781853,1.71235086,175.2,175.19,18.00675706]
[1748216782424,3.84085986,175.2,175.19,18.00675706]
[1748216783039,7.10991876,175.2,175.19,18.00675706]
[1748216786741,7.10991876,175.2,175.18,18.00675706]
[1748216787251,2.128509,175.19,175.18,18.00675706]
[1748216787454,5.3975679,175.19,175.18,18.00675706]
[1748216788052,9.65241416,175.19,175.18,18.00675706]
[1748216789052,11.36484066,175.19,175.18,18.00675706]
[1748216790730,15.64590693,175.19,175.16,18.00675706]
[1748216790962,15.64590693,175.19,175.15,36.54]
[1748216791164,4.25484626,175.18,175.16,18.00675706]
[1748216791850,7.11018992,175.17,175.16,18.00675706]
[1748216792030,11.36503618,175.17,175.16,18.00675706]
[1748216793858,15.64659124,175.17,175.13,26.0]
[1748216794032,3.96102043,175.16,175.15,18.00675706]
[1748216794237,3.96102043,175.16,175.14,18.00675706]
[1748216794558,7.23007933,175.16,175.14,18.00675706]
[1748216794765,2.128509,175.15,175.13,26.0]
[1748216794966,6.08952943,175.15,175.14,34.22]
[1748216795756,3.96102043,175.15,175.14,34.22]
[1748216796134,3.96102043,175.15,175.14,52.22675706]
[1748216798163,1.71252971,175.18,175.16,26.0]
[1748216798364,1.71252971,175.18,175.17,18.00675706]
[1748216798560,1.71232876,175.2,175.17,18.00675706]
[1748216798775,2.1285338,175.19,175.17,18.00675706]
[1748216799066,2.1285338,175.19,175.18,18.00675706]
[1748216799242,6.09530172,175.19,175.18,18.00675706]
[1748216799445,13.62197811,175.19,175.18,18.00675706]
[1748216800273,15.33440461,175.19,175.18,18.00675706]
[1748216800453,13.62197811,175.19,175.18,18.00675706]
[1748216802776,15.33440461,175.19,175.18,18.00675706]
[1748216808582,15.33440461,175.19,175.16,62.54]
[1748216808774,11.36763669,175.19,175.18,18.00675706]
[1748216808967,7.11031186,175.19,175.18,18.00675706]
[1748216809285,5.39788536,175.19,175.18,18.00675706]
[1748216809684,9.65309651,175.19,175.18,18.00675706]
[1748216809877,11.36552301,175.19,175.18,18.00675706]
[1748216810077,15.34486251,175.19,175.18,18.00675706]
[1748216810381,13.63243601,175.19,175.18,18.00675706]
[1748216810588,13.63243601,175.19,175.16,141.7]
[1748216810773,9.37722486,175.19,175.18,18.00675706]
[1748216810974,5.39788536,175.19,175.18,18.00675706]
[1748216811586,9.6534039,175.19,175.18,18.00675706]
[1748216811785,11.3658304,175.19,175.16,178.2]
[1748216812087,2.1285338,175.18,175.17,18.00675706]
[1748216812284,5.39788536,175.18,175.17,18.00675706]
[1748216812761,9.6534039,175.18,175.17,18.00675706]
[1748216812964,11.36592816,175.18,175.17,18.00675706]
[1748216813371,15.33765061,175.18,175.17,18.00675706]
[1748216813692,15.33765061,175.18,175.16,26.0]
[1748216814071,15.33765061,175.18,175.17,18.00675706]
[1748216817091,15.33765061,175.18,175.14,26.0]
[1748216817289,2.1285338,175.17,175.16,18.00675706]
[1748216817506,6.38405234,175.17,175.15,18.00675706]
[1748216817675,13.62512635,175.17,175.15,18.00675706]
[1748216818077,11.49659255,175.17,175.15,18.00675706]
[1748216818684,4.25551854,175.16,175.15,18.00675706]
[1748216819002,13.62735949,175.16,175.15,18.00675706]
[1748216819795,15.34007928,175.16,175.15,18.00675706]
[1748216820667,15.34007928,175.16,175.11,18.00675706]
[1748216820668,18.64964886,175.15,175.11,18.00675706]
[1748216820869,3.97172245,175.14,175.08,36.5]
[1748216821069,18.64964886,175.13,175.1,18.00675706]
[1748216821569,3.26935156,175.12,175.08,36.5]
[1748216821778,1.71330668,175.1,175.09,18.00675706]
[1748216822193,5.68502913,175.1,175.08,18.00675706]
[1748216822586,2.13076694,175.09,175.07,18.00675706]
[1748216823175,4.25551854,175.08,175.04,36.5]
[1748216823377,7.5248701,175.08,175.07,18.00675706]
[1748216823778,9.65563704,175.08,175.04,36.5]
[1748216823996,1.71360027,175.07,175.04,36.5]
[1748216824503,4.25551854,175.06,175.04,36.5]
[1748216824708,7.5248701,175.06,175.04,36.5]
[1748216824891,3.95859157,175.05,174.99,36.52]
[1748216825200,3.95859157,175.05,175.04,18.00675706]
[1748216825887,5.67238762,175.05,175.04,18.00675706]
[1748216826088,7.79906089,175.05,175.04,18.00675706]
[1748216826275,15.321759,175.05,175.04,18.00675706]
[1748216827803,13.19508573,175.05,175.04,18.00675706]
[1748216829000,8.94173918,175.05,175.04,18.00675706]
[1748216829178,5.67238762,175.05,175.04,18.00675706]
[1748216830190,3.95859157,175.05,175.04,18.00675706]
[1748216830387,9.22443557,175.06,175.04,18.00675706]
[1748216830593,5.95508401,175.06,175.05,18.00675706]
[1748216830779,1.71371484,175.06,175.05,18.00675706]
[1748216832486,5.65226472,175.07,175.05,18.00675706]
[1748216832702,5.65226472,175.07,175.06,18.00675706]
[1748216833002,3.93863317,175.07,175.06,18.00675706]
[1748216833707,1.71350482,175.08,175.06,18.00675706]
[1748216833882,1.71350482,175.08,175.07,18.00675706]
[1748216835789,5.65213799,175.08,175.05,36.52]
[1748216835994,5.65213799,175.08,175.07,18.00675706]
[1748216836695,1.71350482,175.08,175.07,18.00675706]
[1748216837711,5.99715171,175.09,175.07,18.00675706]
[1748216837884,24.64680057,175.09,175.08,18.00675706]
[1748216838209,28.58203186,175.09,175.08,18.00675706]
[1748216838596,32.81570812,175.09,175.08,18.00675706]
[1748216838911,32.81570812,175.09,175.07,18.00675706]
[1748216839599,24.64690724,175.08,175.03,26.0]
[1748216839785,24.64690724,175.08,175.05,18.00675706]
[1748216839989,24.64690724,175.08,175.06,18.00675706]
[1748216840215,3.93523129,175.07,175.06,18.00675706]
[1748216841303,24.64690724,175.08,175.06,18.00675706]
[1748216841513,24.64690724,175.08,175.07,18.00675706]
[1748216842286,28.57975629,175.08,175.07,18.00675706]
[1748216842610,28.57975629,175.08,175.03,26.0]
[1748216842791,28.57975629,175.08,175.06,18.00675706]
[1748216843495,24.64690724,175.08,175.06,18.00675706]
[1748216846014,24.64690724,175.08,175.07,18.00675706]
[1748216846199,28.57762772,175.08,175.07,18.00675706]
[1748216848190,55.15189677,175.08,174.93,1.85710686]
[1748216848400,18.64964886,175.06,175.01,18.00675706]
[1748216848698,18.64964886,175.04,175.01,18.00675706]
[1748216848903,4.23360239,175.05,175.02,18.00675706]
[1748216849111,4.23360239,175.05,175.03,18.00675706]
[1748216849812,3.93072048,175.04,175.03,18.00675706]
[1748216850219,5.64461444,175.04,175.03,18.00675706]
[1748216851795,9.87821683,175.04,175.03,18.00675706]
[1748216853795,5.64461444,175.04,175.03,18.00675706]
[1748216855515,8.913966,175.04,175.03,18.00675706]
[1748216856117,13.15002133,175.04,175.03,44.00675706]
[1748216856711,9.88066977,175.04,175.03,44.00675706]
[1748216857518,1.71389396,175.04,175.03,44.00675706]
[1748216858201,1.71369816,175.06,175.03,44.00675706]
[1748216858402,1.71369816,175.06,175.05,18.00675706]
[1748216858923,8.91173908,175.06,175.05,18.00675706]
[1748216860010,5.64238752,175.06,175.05,18.00675706]
[1748216861224,13.1591699,175.06,175.05,18.00675706]
[1748216862830,11.44547174,175.06,175.05,18.00675706]
[1748216863007,4.08508071,175.09,175.08,26.0]
[1748216863203,4.08508071,175.09,175.08,62.01351412]
[1748216864507,1.71331226,175.1,175.08,44.00675706]
[1748216864722,1.71331226,175.1,175.09,18.00675706]
[1748216864914,5.99554616,175.13,175.09,18.00675706]
[1748216865222,5.99554616,175.13,175.12,18.00675706]
[1748216865526,18.64964886,175.12,175.1,18.00675706]
[1748216865942,18.64964886,175.12,175.04,70.74]
[1748216865943,18.64964886,175.1,175.09,18.00675706]
[1748216866930,22.49238534,175.1,175.09,18.00675706]
[1748216872119,4.08508071,175.12,175.11,26.0]
[1748216872311,4.08508071,175.12,175.11,44.00675706]
[1748216872511,5.79819171,175.12,175.11,44.00675706]
[1748216872814,4.08508071,175.12,175.11,44.00675706]
[1748216873831,1.71305181,175.13,175.11,44.00675706]
[1748216874029,1.71305181,175.13,175.12,44.00675706]
[1748216874924,4.98048195,175.13,175.12,44.00675706]
[1748216875129,9.23522722,175.13,175.12,44.00675706]
[1748216875836,13.05952736,175.13,175.12,44.00675706]
[1748216880250,9.79209722,175.13,175.12,44.00675706]
[1748216881060,9.79209722,175.13,175.09,117.98]
[1748216881237,9.79209722,175.13,175.11,18.00675706]
[1748216881539,7.52217541,175.12,175.11,18.00675706]
[1748216882118,11.34647555,175.12,175.11,18.00675706]
[1748216883919,13.05958655,175.12,175.11,18.00675706]
[1748216884336,15.18438346,175.12,175.11,18.00675706]
[1748216884640,33.83403232,175.12,175.11,18.00675706]
[1748216888543,39.62330984,175.12,175.09,18.00675706]
[1748216888744,18.64964886,175.1,175.09,18.00675706]
[1748216889251,22.90439413,175.1,175.09,18.00675706]
[1748216889449,28.85349118,175.1,175.09,18.00675706]
[1748216889845,11.917149,175.1,175.09,18.00675706]
[1748216890036,15.18457914,175.1,175.09,18.00675706]
[1748216892627,13.05978223,175.1,175.09,18.00675706]
[1748216894546,15.18551677,175.1,175.09,18.00675706]
[1748216895851,15.18551677,175.1,175.05,141.72]
[1748216896154,11.36121663,175.1,175.09,18.00675706]
[1748216896953,18.64964886,175.09,175.05,107.5]
[1748216897138,15.64448333,175.1,175.08,18.00675706]
[1748216897341,15.64448333,175.1,175.09,18.00675706]
[1748216897958,23.55657998,175.1,175.09,18.00675706]
[1748216902857,19.47149927,175.1,175.09,18.00675706]
[1748216903056,18.64964886,175.09,175.05,26.0]
[1748216903364,17.34576473,175.1,175.08,18.00675706]
[1748216903563,13.09101946,175.1,175.09,18.00675706]
[1748216903860,9.26400352,175.1,175.09,9.79227546]
[1748216904361,15.65839067,175.1,175.09,9.79227546]
[1748216904562,19.49155774,175.1,175.09,9.79227546]
[1748216905436,38.1412066,175.1,175.09,9.79227546]
[1748216905637,38.1412066,175.1,175.08,18.00675706]
[1748216905949,6.39438715,175.09,175.08,18.00675706]
[1748216906334,10.22755422,175.09,175.08,18.00675706]
[1748216906733,15.20838889,175.09,175.08,18.00675706]
[1748216909148,15.20838889,175.09,175.08,44.00675706]
[1748216915767,15.20838889,175.09,175.08,18.00675706]
[1748216916984,19.30134612,175.09,175.08,18.00675706]
[1748216918073,50.80152898,175.09,175.03,26.0]
[1748216918261,50.80152898,175.09,175.04,26.0]
[1748216918262,18.64964886,175.07,175.04,26.0]
[1748216918470,18.64964886,175.07,175.06,18.00675706]
[1748216919255,22.49640722,175.07,175.06,18.00675706]
[1748216919477,30.58672816,175.07,175.06,18.00675706]
[1748216919892,33.8541583,175.07,175.06,9.79090825]
[1748216921180,37.94860388,175.07,175.06,9.79090825]
[1748216923863,42.23260456,175.07,175.05,18.00675706]
[1748216924373,28.9105148,175.06,174.99,81.5]
[1748216924685,18.64964886,175.04,175.03,18.00675706]
[1748216924872,21.917079,175.04,175.03,18.00675706]
[1748216925076,30.00739994,175.04,175.03,18.00675706]
[1748216925587,33.85445199,175.04,175.03,18.00675706]
[1748216925774,38.1391869,175.04,174.99,152.2]
[1748216925974,38.1391869,175.04,175.03,18.00675706]
[1748216926884,38.1391869,175.04,174.99,26.0]
[1748216927081,36.00602881,175.04,175.03,18.00675706]
[1748216927284,32.17863025,175.04,175.03,18.00675706]
[1748216927672,34.30971248,175.04,175.03,18.00675706]
[1748216928395,38.40415806,175.04,175.03,18.00675706]
[1748216928893,42.22289046,175.04,175.03,18.00675706]
[1748216929794,42.22289046,175.04,174.99,26.0]
[1748216929979,40.09180823,175.04,175.03,18.00675706]
[1748216930467,42.22125388,175.04,175.03,18.00675706]
[1748216931389,38.1268083,175.04,175.03,18.00675706]
[1748216935582,38.1268083,175.04,175.02,18.00675706]
[1748216935783,22.91257124,175.03,175.02,18.00675706]
[1748216935989,26.73130364,175.03,175.02,18.00675706]
[1748216936296,36.2136848,175.03,175.02,18.00675706]
[1748216936792,36.2136848,175.03,174.99,26.0]
[1748216936793,5.99931435,175.02,174.99,26.0]
[1748216936971,5.94817805,175.01,174.99,26.0]
[1748216937171,5.94817805,175.01,175.0,18.00675706]
[1748216938092,10.20336292,175.01,175.0,18.00675706]
[1748216938292,11.91755068,175.01,175.0,18.00675706]
[1748216938788,15.18520747,175.01,175.0,18.00675706]
[1748216941404,18.64964886,175.0,174.98,81.5]
[1748216941597,18.64964886,175.0,174.98,26.0]
[1748216941775,18.64964886,175.0,174.99,18.00675706]
[1748216942282,25.03427938,175.0,174.99,18.00675706]
[1748216942675,30.56729749,175.0,174.99,18.00675706]
[1748216943470,33.83495428,175.0,174.99,18.00675706]
[1748216946177,38.12066856,175.0,174.94,143.96]
[1748216946390,22.46838126,174.99,174.98,18.00675706]
[1748216946699,25.73603805,174.99,174.98,18.00675706]
[1748216946886,32.12066857,174.99,174.94,36.46]
[1748216947081,32.12066857,174.99,174.98,18.00675706]
[1748216947787,32.12066857,174.99,174.94,36.46]
[1748216947979,33.83505224,174.99,174.98,18.00675706]
[1748216948304,31.70560659,174.99,174.98,18.00675706]
[1748216948680,33.83049234,174.99,174.98,18.00675706]
[1748216949085,38.11645153,174.99,174.94,117.96]
[1748216949279,15.18084348,174.99,174.98,18.00675706]
[1748216950790,15.18084348,174.99,174.94,36.46]
[1748216950991,13.05595773,174.99,174.98,18.00675706]
[1748216951597,15.18023219,174.99,174.98,18.00675706]
[1748216955512,10.92504732,174.99,174.98,18.00675706]
[1748216955806,7.65739053,174.99,174.98,18.00675706]
[1748216956191,3.83865813,174.99,174.98,18.00675706]
[1748216956607,7.10631492,174.99,174.98,18.00675706]
[1748216956799,5.39193125,174.99,174.98,18.00675706]
[1748216957001,9.21066365,174.99,174.98,18.00675706]
[1748216958989,13.46493608,174.99,174.98,18.00675706]
[1748216960296,13.46493608,174.99,174.98,36.01351412]
[1748216960809,9.21066365,174.99,174.98,36.01351412]
[1748216961218,5.94300686,174.99,174.98,36.01351412]
[1748216961523,2.12427446,174.99,174.98,36.01351412]
[1748216961716,4.25963556,175.01,175.0,26.0]
[1748216962017,8.04891368,175.08,175.0,132.71351412]
[1748216962201,8.04891368,175.08,175.07,18.00675706]
[1748216962605,11.86152975,175.08,175.07,18.00675706]
[1748216963005,13.57504109,175.08,175.07,18.00675706]
[1748216963722,8.79619923,175.08,175.07,18.00675706]
[1748216965003,5.52612741,175.08,175.07,18.00675706]
[1748216966310,5.52612741,175.08,175.04,60.24]
[1748216966311,9.8098834,175.08,175.04,60.24]
[1748216966511,9.8098834,175.08,175.07,18.00675706]
[1748216966828,5.99726733,175.08,175.07,18.00675706]
[1748216967415,9.26733915,175.08,175.07,18.00675706]
[1748216968222,4.28375599,175.08,175.07,18.00675706]
[1748216968413,8.09316134,175.08,175.07,18.00675706]
[1748216969926,11.36323316,175.08,175.07,18.00675706]
[1748216970410,13.07673555,175.08,175.07,18.00675706]
[1748216970926,8.79297956,175.08,175.07,18.00675706]
[1748216971305,5.52290774,175.08,175.07,18.00675706]
[1748216971927,3.27007182,175.1,175.07,62.01351412]
[1748216972123,3.27007182,175.1,175.09,36.01351412]
[1748216972507,3.27007182,175.1,175.09,18.00675706]
[1748216973107,4.9833785,175.1,175.09,18.00675706]
[1748216973831,7.10747767,175.1,175.09,18.00675706]
[1748216975129,3.83740585,175.1,175.09,18.00675706]
[1748216978717,5.99637505,175.11,175.09,18.00675706]
[1748216978917,5.99637505,175.11,175.1,18.00675706]
[1748216979430,8.11761581,175.11,175.1,18.00675706]
[1748216983208,11.38768763,175.11,175.1,18.00675706]
[1748216984322,15.11990338,175.11,175.1,18.00675706]
[1748216984519,11.84983156,175.11,175.1,18.00675706]
[1748216989322,8.11761581,175.11,175.1,18.00675706]
[1748216991437,5.99637505,175.11,175.1,18.00675706]
[1748216991654,18.64964886,175.1,175.03,4.50076307]
[1748216991819,18.64964886,175.1,175.09,18.00675706]
[1748216992138,3.27007182,175.1,175.09,18.00675706]
[1748216992321,9.12396265,175.1,175.09,18.00675706]
[1748216993042,10.83726933,175.1,175.09,18.00675706]
[1748216993624,7.56719751,175.1,175.09,18.00675706]
[1748216995921,4.28247165,175.14,175.12,26.0]
[1748216996123,4.28247165,175.14,175.13,18.00675706]
[1748216997037,5.99538703,175.14,175.13,18.00675706]
[1748216998046,4.28247165,175.14,175.13,18.00675706]
[1748217000647,4.28247165,175.14,175.12,26.0]
[1748217000852,4.28247165,175.14,175.13,18.00675706]
[1748217001040,1.71271979,175.16,175.13,18.00675706]
[1748217001360,1.71271979,175.16,175.15,44.00675706]
[1748217002262,18.64964886,175.19,175.15,18.00675706]
[1748217002461,18.64964886,175.19,175.18,18.00675706]
[1748217003662,20.36207536,175.19,175.18,18.00675706]
[1748217005459,1.7124265,175.19,175.18,18.00675706]
[1748217005642,5.99332035,175.2,175.18,18.00675706]
[1748217005840,5.99332035,175.2,175.19,18.00675706]
[1748217006225,5.99332035,175.2,175.19,9.79630315]
[1748217007658,1.71232876,175.2,175.19,9.79630315]
[1748217008323,1.71232876,175.2,175.19,27.80306021]
[1748217008531,5.81580966,175.2,175.19,27.80306021]
[1748217008729,1.7122509,175.21,175.19,36.01351412]
[1748217008949,1.7122509,175.21,175.2,18.00675706]
[1748217009747,1.7122509,175.21,175.2,36.01351412]
[1748217011565,4.28021009,175.23,175.2,36.01351412]
[1748217011965,4.28021009,175.23,175.22,18.00675706]
[1748217013541,1.71193791,175.24,175.22,18.00675706]
[1748217014041,5.99178269,175.24,175.23,18.00675706]
[1748217015348,5.99178269,175.24,175.2,107.5]
[1748217015538,4.27984478,175.24,175.23,18.00675706]
[1748217021666,7.8992308,175.24,175.2,26.0]
[1748217021846,7.8992308,175.24,175.23,18.00675706]
[1748217022446,4.27984478,175.24,175.23,18.00675706]
[1748217027569,9.60665636,175.24,175.23,18.00675706]
[1748217029960,5.32681158,175.24,175.23,18.00675706]
[1748217031464,1.71193791,175.24,175.23,18.00675706]
[1748217031866,1.71184022,175.25,175.23,18.00675706]
[1748217032174,1.71184022,175.25,175.24,18.00675706]
[1748217037882,5.99144079,175.25,175.24,18.00675706]
[1748217038383,9.25805907,175.25,175.24,18.00675706]
[1748217038871,12.87293274,175.25,175.24,18.00675706]
[1748217039073,14.99532297,175.25,175.24,18.00675706]
[1748217039956,10.7157224,175.25,175.24,18.00675706]
[1748217041470,9.00388218,175.25,175.24,99.50675706]
[1748217041669,4.06485066,175.27,175.26,26.0]
[1748217041868,4.06485066,175.27,175.26,44.00675706]
[1748217042567,1.71145874,175.29,175.26,44.00675706]
[1748217042787,1.71145874,175.29,175.28,18.00675706]
[1748217043962,20.27821363,175.31,175.28,18.00675706]
[1748217043963,1.71135196,175.3,175.28,18.00675706]
[1748217044283,1.71135196,175.3,175.29,18.00675706]
[1748217047490,16.0,175.31,175.29,62.01351412]
[1748217047795,16.0,175.31,175.3,36.01351412]
[1748217048093,17.71128432,175.31,175.3,36.01351412]
[1748217049361,17.71128432,175.31,175.29,26.0]
[1748217049681,17.71128432,175.31,175.3,36.01351412]
[1748217051365,17.71128432,175.31,175.3,70.21351412]
[1748217051366,1.08399699,175.31,175.3,70.21351412]
[1748217051595,4.06485066,175.36,175.33,26.0]
[1748217051797,5.77561708,175.36,175.35,18.00675706]
[1748217051973,1.71076642,175.36,175.35,18.00675706]
[1748217053496,1.71057133,175.38,175.35,18.00675706]